[Event "Titled Tuesday Blitz March 08 Late 2022"]
[White "Salimova, Nurgyul"]
[Black "Papasimakopoulos, Alexandros"]
[WhiteFideId "2915138"]
[BlackFideId "4244125"]
[WhiteElo "2185"]
[BlackElo "2340"]
[Result "1-0"]
[Round "10"]
[TimeControl "180+1"]
[Date "2022.03.08"]
[WhiteClock "0:00:07"]
[BlackClock "0:00:28"]

1. e4 {[%clk 0:03:00]}  e6 {[%clk 0:03:00]} 2. d4 {[%clk 0:02:59]}  d5 {[%clk 0:03:00]} 3. Nc3 {[%clk 0:02:58]}  Bb4 {[%clk 0:03:00]} 4. e5 {[%clk 0:02:57]}  b6 {[%clk 0:03:01]} 5. a3 {[%clk 0:02:55]}  Bf8 {[%clk 0:03:01]} 6. h4 {[%clk 0:02:50]}  Ne7 {[%clk 0:03:01]} 7. h5 {[%clk 0:02:48]}  h6 {[%clk 0:03:01]} 8. Qg4 {[%clk 0:02:32]}  Ba6 {[%clk 0:03:00]} 9. Bxa6 {[%clk 0:02:31]}  Nxa6 {[%clk 0:03:01]} 10. Nf3 {[%clk 0:02:29]}  Qd7 {[%clk 0:03:01]} 11. b4 {[%clk 0:02:21]}  c5 {[%clk 0:02:56]} 12. bxc5 {[%clk 0:02:16]}  bxc5 {[%clk 0:02:56]} 13. dxc5 {[%clk 0:02:16]}  Nxc5 {[%clk 0:02:56]} 14. O-O {[%clk 0:02:14]}  Nf5 {[%clk 0:02:56]} 15. Ne2 {[%clk 0:02:07]}  Be7 {[%clk 0:02:55]} 16. Ned4 {[%clk 0:02:06]}  O-O {[%clk 0:02:54]} 17. Nxf5 {[%clk 0:01:50]}  exf5 {[%clk 0:02:55]} 18. Qd4 {[%clk 0:01:48]}  Ne6 {[%clk 0:02:54]} 19. Qd3 {[%clk 0:01:43]}  Ng5 {[%clk 0:02:55]} 20. Rd1 {[%clk 0:01:39]}  Rfd8 {[%clk 0:02:50]} 21. Bxg5 {[%clk 0:01:33]}  hxg5 {[%clk 0:02:49]} 22. Nd4 {[%clk 0:01:33]}  f4 {[%clk 0:02:38]} 23. h6 {[%clk 0:01:15]}  Bc5 {[%clk 0:02:26]} 24. hxg7 {[%clk 0:01:11]}  Bxd4 {[%clk 0:02:22]} 25. Qxd4 {[%clk 0:01:11]}  Rac8 {[%clk 0:02:16]} 26. Rd2 {[%clk 0:01:06]}  Rc4 {[%clk 0:02:13]} 27. Qd3 {[%clk 0:01:01]}  Re4 {[%clk 0:02:07]} 28. Rad1 {[%clk 0:00:52]}  Rxe5 {[%clk 0:02:07]} 29. c4 {[%clk 0:00:49]}  Rde8 {[%clk 0:01:46]} 30. Qf1 {[%clk 0:00:40]}  g4 {[%clk 0:01:37]} 31. Rxd5 {[%clk 0:00:38]}  Rxd5 {[%clk 0:01:37]} 32. Rxd5 {[%clk 0:00:38]}  Qe6 {[%clk 0:01:33]} 33. Rd4 {[%clk 0:00:31]}  Qe5 {[%clk 0:01:29]} 34. Qd1 {[%clk 0:00:21]}  g3 {[%clk 0:01:29]} 35. Rd8 {[%clk 0:00:19]}  Rxd8 {[%clk 0:01:27]} 36. Qxd8+ {[%clk 0:00:19]}  Kxg7 {[%clk 0:01:28]} 37. Qd1 {[%clk 0:00:18]}  Qc5 {[%clk 0:01:22]} 38. Qg4+ {[%clk 0:00:16]}  Kf8 {[%clk 0:01:18]} 39. Qxf4 {[%clk 0:00:15]}  gxf2+ {[%clk 0:01:10]} 40. Qxf2 {[%clk 0:00:16]}  Qxa3 {[%clk 0:01:09]} 41. Qd4 {[%clk 0:00:15]}  a5 {[%clk 0:00:43]} 42. c5 {[%clk 0:00:14]}  a4 {[%clk 0:00:40]} 43. Qd8+ {[%clk 0:00:09]}  Kg7 {[%clk 0:00:40]} 44. Qg5+ {[%clk 0:00:09]}  Kf8 {[%clk 0:00:41]} 45. Qh6+ {[%clk 0:00:09]}  Ke7 {[%clk 0:00:39]} 46. Qd6+ {[%clk 0:00:09]}  Ke8 {[%clk 0:00:39]} 47. Qb8+ {[%clk 0:00:09]}  Kd7 {[%clk 0:00:38]} 48. Qb7+ {[%clk 0:00:10]}  Ke6 {[%clk 0:00:38]} 49. c6 {[%clk 0:00:09]}  Qc5+ {[%clk 0:00:34]} 50. Kh2 {[%clk 0:00:08]}  Qe5+ {[%clk 0:00:25]} 51. Kh3 {[%clk 0:00:07]}  Qh5+ {[%clk 0:00:21]} 52. Kg3 {[%clk 0:00:07]}  Qg5+ {[%clk 0:00:21]} 53. Kf2 {[%clk 0:00:07]}  Qf5+ {[%clk 0:00:21]} 54. Ke3 {[%clk 0:00:06]}  Qe5+ {[%clk 0:00:21]} 55. Kd3 {[%clk 0:00:07]}  Qd5+ {[%clk 0:00:21]} 56. Kc3 {[%clk 0:00:07]}  a3 {[%clk 0:00:21]} 57. Qc8+ {[%clk 0:00:04]}  Kd6 {[%clk 0:00:21]} 58. Qd7+ {[%clk 0:00:05]}  Ke5 {[%clk 0:00:18]} 59. Qxd5+ {[%clk 0:00:05]}  Kxd5 {[%clk 0:00:19]} 60. c7 {[%clk 0:00:06]}  a2 {[%clk 0:00:20]} 61. Kb2 {[%clk 0:00:07]}  Kd6 {[%clk 0:00:21]} 62. c8=Q {[%clk 0:00:06]}  Ke5 {[%clk 0:00:22]} 63. Kxa2 {[%clk 0:00:06]}  f5 {[%clk 0:00:22]} 64. Qf8 {[%clk 0:00:07]}  Kf4 {[%clk 0:00:23]} 65. Qg7 {[%clk 0:00:07]}  Ke4 {[%clk 0:00:24]} 66. Kb2 {[%clk 0:00:08]}  f4 {[%clk 0:00:25]} 67. Kc2 {[%clk 0:00:08]}  Ke3 {[%clk 0:00:25]} 68. Kd1 {[%clk 0:00:07]}  f3 {[%clk 0:00:26]} 69. gxf3 {[%clk 0:00:07]}  Kf2 {[%clk 0:00:27]} 70. Qe5 {[%clk 0:00:07]}  Kg2 {[%clk 0:00:27]} 71. f4 {[%clk 0:00:07]}  Kf1 {[%clk 0:00:28]} 1-0


[Site "https://www.chess.com"]

[Event "Titled Tuesday Blitz March 08 Late 2022"]
[White "Salinas Herrera, Pablo"]
[Black "Bortnyk, Olexandr"]
[WhiteFideId "3407128"]
[BlackFideId "14120828"]
[WhiteElo "2541"]
[BlackElo "2723"]
[Result "0-1"]
[Round "10"]
[TimeControl "180+1"]
[Date "2022.03.08"]
[WhiteClock "0:00:02"]
[BlackClock "0:00:06"]

1. d4 {[%clk 0:03:00]}  f5 {[%clk 0:02:54]} 2. Bf4 {[%clk 0:03:00]}  Nf6 {[%clk 0:02:53]} 3. e3 {[%clk 0:03:00]}  d6 {[%clk 0:02:54]} 4. c4 {[%clk 0:02:55]}  c6 {[%clk 0:02:53]} 5. Nc3 {[%clk 0:02:55]}  g6 {[%clk 0:02:53]} 6. h4 {[%clk 0:02:55]}  h6 {[%clk 0:02:52]} 7. Qc2 {[%clk 0:02:55]}  Bg7 {[%clk 0:02:52]} 8. Nf3 {[%clk 0:02:55]}  Be6 {[%clk 0:02:52]} 9. Bd3 {[%clk 0:02:55]}  d5 {[%clk 0:02:49]} 10. c5 {[%clk 0:02:55]}  Nbd7 {[%clk 0:02:46]} 11. Ne5 {[%clk 0:02:55]}  Nxe5 {[%clk 0:02:45]} 12. Bxe5 {[%clk 0:02:55]}  b6 {[%clk 0:02:39]} 13. cxb6 {[%clk 0:02:35]}  axb6 {[%clk 0:02:31]} 14. Bxf6 {[%clk 0:02:34]}  Bxf6 {[%clk 0:01:58]} 15. h5 {[%clk 0:02:34]}  Qd6 {[%clk 0:01:46]} 16. hxg6 {[%clk 0:02:33]}  f4 {[%clk 0:01:46]} 17. O-O-O {[%clk 0:01:37]}  b5 {[%clk 0:01:42]} 18. Kb1 {[%clk 0:01:31]}  fxe3 {[%clk 0:01:35]} 19. fxe3 {[%clk 0:01:32]}  Bg5 {[%clk 0:01:36]} 20. e4 {[%clk 0:01:12]}  dxe4 {[%clk 0:01:34]} 21. Bxe4 {[%clk 0:01:09]}  b4 {[%clk 0:01:25]} 22. Na4 {[%clk 0:01:07]}  O-O {[%clk 0:01:19]} 23. b3 {[%clk 0:00:50]}  Rxa4 {[%clk 0:00:41]} 24. bxa4 {[%clk 0:00:51]}  Kg7 {[%clk 0:00:42]} 25. Qxc6 {[%clk 0:00:27]}  Bxa2+ {[%clk 0:00:33]} 26. Kxa2 {[%clk 0:00:20]}  b3+ {[%clk 0:00:33]} 27. Kb2 {[%clk 0:00:08]}  Qb4 {[%clk 0:00:20]} 28. Bf3 {[%clk 0:00:07]}  Bf4 {[%clk 0:00:14]} 29. Rd3 {[%clk 0:00:06]}  Rb8 {[%clk 0:00:10]} 30. Rhd1 {[%clk 0:00:05]}  Bd6 {[%clk 0:00:10]} 31. Re3 {[%clk 0:00:03]}  Qa3+ {[%clk 0:00:10]} 32. Kc3 {[%clk 0:00:01]}  b2+ {[%clk 0:00:08]} 33. Kd2 {[%clk 0:00:02]}  Qa2 {[%clk 0:00:06]} 0-1


[Site "https://www.chess.com"]

[Event "Titled Tuesday Blitz March 08 Late 2022"]
[White "Spitzl, Vinzent"]
[Black "Karttunen, Mika"]
[WhiteFideId "12901253"]
[BlackFideId "502081"]
[WhiteElo "2160"]
[BlackElo "2343"]
[Result "0-1"]
[Round "10"]
[TimeControl "180+1"]
[Date "2022.03.09"]
[WhiteClock "0:00:01"]
[BlackClock "0:00:04"]

1. e4 {[%clk 0:03:00]}  Nf6 {[%clk 0:02:59]} 2. e5 {[%clk 0:02:59]}  Nd5 {[%clk 0:02:59]} 3. d4 {[%clk 0:02:59]}  Nb6 {[%clk 0:02:59]} 4. Nf3 {[%clk 0:02:55]}  d6 {[%clk 0:02:58]} 5. Be2 {[%clk 0:02:53]}  dxe5 {[%clk 0:02:55]} 6. Nxe5 {[%clk 0:02:53]}  N8d7 {[%clk 0:02:55]} 7. Nxd7 {[%clk 0:02:49]}  Bxd7 {[%clk 0:02:55]} 8. O-O {[%clk 0:02:49]}  g6 {[%clk 0:02:55]} 9. Bf4 {[%clk 0:02:47]}  Bg7 {[%clk 0:02:54]} 10. c3 {[%clk 0:02:47]}  O-O {[%clk 0:02:54]} 11. Bf3 {[%clk 0:02:44]}  c6 {[%clk 0:02:54]} 12. Nd2 {[%clk 0:02:43]}  Nd5 {[%clk 0:02:49]} 13. Bg3 {[%clk 0:02:41]}  a5 {[%clk 0:02:46]} 14. a4 {[%clk 0:02:38]}  Be6 {[%clk 0:02:43]} 15. Re1 {[%clk 0:02:35]}  Qd7 {[%clk 0:02:31]} 16. Qe2 {[%clk 0:02:13]}  Rfe8 {[%clk 0:02:30]} 17. Nc4 {[%clk 0:02:08]}  Qd8 {[%clk 0:02:21]} 18. Ne5 {[%clk 0:02:04]}  Nf6 {[%clk 0:02:11]} 19. Nd3 {[%clk 0:01:56]}  Bc4 {[%clk 0:02:09]} 20. Qc2 {[%clk 0:01:51]}  Bxd3 {[%clk 0:02:07]} 21. Qxd3 {[%clk 0:01:51]}  Nd5 {[%clk 0:02:06]} 22. h4 {[%clk 0:01:39]}  e6 {[%clk 0:02:04]} 23. h5 {[%clk 0:01:35]}  Qg5 {[%clk 0:02:04]} 24. hxg6 {[%clk 0:01:34]}  hxg6 {[%clk 0:02:03]} 25. Rad1 {[%clk 0:01:28]}  Rad8 {[%clk 0:01:46]} 26. Qe4 {[%clk 0:01:20]}  Bf6 {[%clk 0:01:44]} 27. Be2 {[%clk 0:01:08]}  Kg7 {[%clk 0:01:42]} 28. Qg4 {[%clk 0:01:03]}  Qh6 {[%clk 0:01:39]} 29. Bd3 {[%clk 0:00:51]}  Rh8 {[%clk 0:01:36]} 30. Kf1 {[%clk 0:00:47]}  Qh1+ {[%clk 0:01:27]} 31. Ke2 {[%clk 0:00:47]}  Qxg2 {[%clk 0:01:27]} 32. Rg1 {[%clk 0:00:37]}  Qh3 {[%clk 0:01:27]} 33. Qf3 {[%clk 0:00:36]}  Qh5 {[%clk 0:01:06]} 34. Rh1 {[%clk 0:00:35]}  Qxf3+ {[%clk 0:01:06]} 35. Kxf3 {[%clk 0:00:36]}  Rxh1 {[%clk 0:01:02]} 36. Rxh1 {[%clk 0:00:37]}  Be7 {[%clk 0:00:52]} 37. Be5+ {[%clk 0:00:33]}  f6 {[%clk 0:00:52]} 38. Bf4 {[%clk 0:00:33]}  Bd6 {[%clk 0:00:46]} 39. Bd2 {[%clk 0:00:31]}  Ne7 {[%clk 0:00:29]} 40. Bh6+ {[%clk 0:00:28]}  Kf7 {[%clk 0:00:29]} 41. Bd2 {[%clk 0:00:28]}  Rg8 {[%clk 0:00:28]} 42. Rh7+ {[%clk 0:00:27]}  Rg7 {[%clk 0:00:28]} 43. Rh8 {[%clk 0:00:27]}  Rg8 {[%clk 0:00:29]} 44. Rh7+ {[%clk 0:00:27]}  Ke8 {[%clk 0:00:29]} 45. Bc4 {[%clk 0:00:26]}  Kd7 {[%clk 0:00:28]} 46. Rf7 {[%clk 0:00:21]}  g5 {[%clk 0:00:14]} 47. Rxf6 {[%clk 0:00:19]}  g4+ {[%clk 0:00:14]} 48. Ke2 {[%clk 0:00:19]}  Nd5 {[%clk 0:00:14]} 49. Rf7+ {[%clk 0:00:19]}  Be7 {[%clk 0:00:13]} 50. Bd3 {[%clk 0:00:14]}  Ke8 {[%clk 0:00:12]} 51. Rh7 {[%clk 0:00:13]}  Rf8 {[%clk 0:00:13]} 52. Be4 {[%clk 0:00:12]}  Nf4+ {[%clk 0:00:12]} 53. Bxf4 {[%clk 0:00:12]}  Rxf4 {[%clk 0:00:13]} 54. Bd3 {[%clk 0:00:11]}  Rf8 {[%clk 0:00:12]} 55. Bg6+ {[%clk 0:00:11]}  Kd7 {[%clk 0:00:12]} 56. Rg7 {[%clk 0:00:11]}  Kd6 {[%clk 0:00:11]} 57. Be4 {[%clk 0:00:11]}  Rf4 {[%clk 0:00:11]} 58. Ke3 {[%clk 0:00:10]}  Rf8 {[%clk 0:00:09]} 59. Rxg4 {[%clk 0:00:09]}  Rh8 {[%clk 0:00:09]} 60. Rg1 {[%clk 0:00:07]}  Rh3+ {[%clk 0:00:09]} 61. Bf3 {[%clk 0:00:06]}  Bf8 {[%clk 0:00:08]} 62. Rg3 {[%clk 0:00:06]}  Bh6+ {[%clk 0:00:08]} 63. Ke2 {[%clk 0:00:06]}  Rh4 {[%clk 0:00:09]} 64. Rg4 {[%clk 0:00:06]}  Rh2 {[%clk 0:00:09]} 65. Rg1 {[%clk 0:00:05]}  Bf8 {[%clk 0:00:07]} 66. Rf1 {[%clk 0:00:04]}  Be7 {[%clk 0:00:07]} 67. Bg4 {[%clk 0:00:04]}  Bh4 {[%clk 0:00:08]} 68. Kf3 {[%clk 0:00:04]}  Bg5 {[%clk 0:00:08]} 69. Re1 {[%clk 0:00:04]}  Rh6 {[%clk 0:00:07]} 70. Kg3 {[%clk 0:00:04]}  Rf6 {[%clk 0:00:07]} 71. f3 {[%clk 0:00:03]}  b6 {[%clk 0:00:04]} 72. Kg2 {[%clk 0:00:03]}  Bf4 {[%clk 0:00:04]} 73. Kf2 {[%clk 0:00:03]}  Rh6 {[%clk 0:00:04]} 74. Rg1 {[%clk 0:00:02]}  Rh2+ {[%clk 0:00:04]} 75. Rg2 {[%clk 0:00:02]}  Rh1 {[%clk 0:00:05]} 76. Ke2 {[%clk 0:00:02]}  Rb1 {[%clk 0:00:04]} 77. Kd3 {[%clk 0:00:02]}  Ra1 {[%clk 0:00:04]} 78. b3 {[%clk 0:00:02]}  b5 {[%clk 0:00:03]} 79. axb5 {[%clk 0:00:01]}  cxb5 {[%clk 0:00:04]} 80. Re2 {[%clk 0:00:02]}  e5 {[%clk 0:00:04]} 81. dxe5+ {[%clk 0:00:02]}  Bxe5 {[%clk 0:00:05]} 82. c4 {[%clk 0:00:02]}  a4 {[%clk 0:00:03]} 83. bxa4 {[%clk 0:00:01]}  bxa4 {[%clk 0:00:04]} 0-1


[Site "https://www.chess.com"]

[Event "Titled Tuesday Blitz March 08 Late 2022"]
[White "Suarez Uriel, Adrian"]
[Black "Jaferian, Koosha"]
[WhiteFideId "22230874"]
[BlackFideId "12507440"]
[WhiteElo "2316"]
[BlackElo "2030"]
[Result "0-1"]
[Round "10"]
[TimeControl "180+1"]
[Date "2022.03.08"]
[WhiteClock "0:02:18"]
[BlackClock "0:02:04"]

1. e4 {[%clk 0:03:00]}  c6 {[%clk 0:03:00]} 2. Nf3 {[%clk 0:02:59]}  d5 {[%clk 0:03:01]} 3. d3 {[%clk 0:03:00]}  g6 {[%clk 0:03:00]} 4. e5 {[%clk 0:02:59]}  Bg7 {[%clk 0:02:59]} 5. d4 {[%clk 0:02:59]}  Bf5 {[%clk 0:02:59]} 6. h3 {[%clk 0:02:57]}  c5 {[%clk 0:02:57]} 7. dxc5 {[%clk 0:02:55]}  Nc6 {[%clk 0:02:57]} 8. Bb5 {[%clk 0:02:51]}  Qc7 {[%clk 0:02:53]} 9. O-O {[%clk 0:02:49]}  Be4 {[%clk 0:02:33]} 10. Nc3 {[%clk 0:02:43]}  Bxf3 {[%clk 0:02:32]} 11. Qxf3 {[%clk 0:02:43]}  e6 {[%clk 0:02:32]} 12. Bf4 {[%clk 0:02:38]}  Ne7 {[%clk 0:02:29]} 13. Rfe1 {[%clk 0:02:36]}  O-O {[%clk 0:02:29]} 14. a3 {[%clk 0:02:35]}  Nd4 {[%clk 0:02:28]} 15. Qd3 {[%clk 0:02:21]}  Qxc5 {[%clk 0:02:06]} 16. b4 {[%clk 0:02:20]}  Qb6 {[%clk 0:02:04]} 17. Na4 {[%clk 0:02:20]}  Qxb5 {[%clk 0:02:04]} 18. Qxd4 {[%clk 0:02:18]}  Qxa4 {[%clk 0:02:04]} 0-1


[Site "https://www.chess.com"]

[Event "Titled Tuesday Blitz March 08 Late 2022"]
[White "Supatashvili, Khvicha"]
[Black "Kopczynski, Michal"]
[WhiteFideId "13600664"]
[BlackFideId "1124200"]
[WhiteElo "2689"]
[BlackElo "2235"]
[Result "1/2-1/2"]
[Round "10"]
[TimeControl "180+1"]
[Date "2022.03.08"]
[WhiteClock "0:00:05"]
[BlackClock "0:00:08"]

1. e4 {[%clk 0:03:00]}  c5 {[%clk 0:02:59]} 2. Nf3 {[%clk 0:02:59]}  d6 {[%clk 0:03:00]} 3. Bb5+ {[%clk 0:02:59]}  Nc6 {[%clk 0:02:59]} 4. O-O {[%clk 0:02:57]}  g6 {[%clk 0:02:59]} 5. c3 {[%clk 0:02:57]}  Bg7 {[%clk 0:02:59]} 6. d4 {[%clk 0:02:57]}  cxd4 {[%clk 0:02:59]} 7. cxd4 {[%clk 0:02:57]}  Bd7 {[%clk 0:02:59]} 8. Nc3 {[%clk 0:02:55]}  Nf6 {[%clk 0:03:00]} 9. e5 {[%clk 0:02:53]}  dxe5 {[%clk 0:02:52]} 10. d5 {[%clk 0:02:13]}  Nd4 {[%clk 0:02:45]} 11. Nxd4 {[%clk 0:02:10]}  exd4 {[%clk 0:02:46]} 12. Qxd4 {[%clk 0:02:08]}  O-O {[%clk 0:02:42]} 13. Rd1 {[%clk 0:02:00]}  Bg4 {[%clk 0:02:06]} 14. Be2 {[%clk 0:01:50]}  Bxe2 {[%clk 0:01:54]} 15. Nxe2 {[%clk 0:01:49]}  Qd7 {[%clk 0:01:51]} 16. Nc3 {[%clk 0:01:48]}  Rfd8 {[%clk 0:01:49]} 17. Bf4 {[%clk 0:01:48]}  Qf5 {[%clk 0:01:42]} 18. Be5 {[%clk 0:01:45]}  Rac8 {[%clk 0:01:32]} 19. h3 {[%clk 0:01:40]}  b5 {[%clk 0:01:17]} 20. a3 {[%clk 0:01:36]}  Rc4 {[%clk 0:01:15]} 21. Qe3 {[%clk 0:01:33]}  Ng4 {[%clk 0:00:46]} 22. hxg4 {[%clk 0:01:32]}  Qxe5 {[%clk 0:00:45]} 23. Qxe5 {[%clk 0:01:20]}  Bxe5 {[%clk 0:00:46]} 24. Nxb5 {[%clk 0:01:19]}  a6 {[%clk 0:00:45]} 25. Na7 {[%clk 0:01:17]}  Bxb2 {[%clk 0:00:40]} 26. Ra2 {[%clk 0:01:06]}  Rc1 {[%clk 0:00:31]} 27. Rxc1 {[%clk 0:01:04]}  Bxc1 {[%clk 0:00:32]} 28. Nc6 {[%clk 0:00:58]}  Rd7 {[%clk 0:00:31]} 29. a4 {[%clk 0:00:45]}  Kf8 {[%clk 0:00:27]} 30. Rc2 {[%clk 0:00:43]}  Bf4 {[%clk 0:00:22]} 31. Rc5 {[%clk 0:00:41]}  e6 {[%clk 0:00:20]} 32. g3 {[%clk 0:00:39]}  Bd6 {[%clk 0:00:15]} 33. Ra5 {[%clk 0:00:39]}  exd5 {[%clk 0:00:12]} 34. Rxd5 {[%clk 0:00:38]}  Ke8 {[%clk 0:00:12]} 35. Ra5 {[%clk 0:00:38]}  Rc7 {[%clk 0:00:06]} 36. Rxa6 {[%clk 0:00:38]}  Kd7 {[%clk 0:00:06]} 37. Nb8+ {[%clk 0:00:37]}  Ke6 {[%clk 0:00:05]} 38. Nc6 {[%clk 0:00:34]}  Kd5 {[%clk 0:00:04]} 39. Na7 {[%clk 0:00:29]}  Rc1+ {[%clk 0:00:02]} 40. Kg2 {[%clk 0:00:29]}  Bc5 {[%clk 0:00:03]} 41. f4 {[%clk 0:00:25]}  Rc2+ {[%clk 0:00:04]} 42. Kf1 {[%clk 0:00:24]}  Ra2 {[%clk 0:00:04]} 43. Nb5 {[%clk 0:00:22]}  Ra1+ {[%clk 0:00:01]} 44. Ke2 {[%clk 0:00:22]}  Ke4 {[%clk 0:00:02]} 45. Nd6+ {[%clk 0:00:19]}  Kd5 {[%clk 0:00:02]} 46. Nxf7 {[%clk 0:00:19]}  Ke4 {[%clk 0:00:03]} 47. Re6+ {[%clk 0:00:18]}  Kd5 {[%clk 0:00:03]} 48. Re5+ {[%clk 0:00:18]}  Kd4 {[%clk 0:00:02]} 49. Ng5 {[%clk 0:00:16]}  Ra2+ {[%clk 0:00:03]} 50. Kd1 {[%clk 0:00:15]}  Kd3 {[%clk 0:00:03]} 51. Rd5+ {[%clk 0:00:15]}  Bd4 {[%clk 0:00:03]} 52. Rxd4+ {[%clk 0:00:14]}  Kxd4 {[%clk 0:00:03]} 53. Nxh7 {[%clk 0:00:15]}  Kd3 {[%clk 0:00:02]} 54. Ke1 {[%clk 0:00:14]}  Ra1+ {[%clk 0:00:02]} 55. Kf2 {[%clk 0:00:14]}  Rxa4 {[%clk 0:00:03]} 56. Kf3 {[%clk 0:00:14]}  Ra3 {[%clk 0:00:04]} 57. g5 {[%clk 0:00:14]}  Kd4+ {[%clk 0:00:04]} 58. Kg4 {[%clk 0:00:14]}  Kd5 {[%clk 0:00:05]} 59. Nf8 {[%clk 0:00:14]}  Ra6 {[%clk 0:00:04]} 60. Nh7 {[%clk 0:00:13]}  Ke6 {[%clk 0:00:04]} 61. Nf6 {[%clk 0:00:14]}  Kf7 {[%clk 0:00:04]} 62. Ne4 {[%clk 0:00:13]}  Ra1 {[%clk 0:00:05]} 63. Nd6+ {[%clk 0:00:12]}  Kg7 {[%clk 0:00:06]} 64. Nc4 {[%clk 0:00:12]}  Rb1 {[%clk 0:00:06]} 65. Ne5 {[%clk 0:00:12]}  Ra1 {[%clk 0:00:07]} 66. Kf3 {[%clk 0:00:13]}  Ra3+ {[%clk 0:00:07]} 67. Kg2 {[%clk 0:00:12]}  Ra1 {[%clk 0:00:07]} 68. Kh3 {[%clk 0:00:12]}  Ra2 {[%clk 0:00:08]} 69. Kg4 {[%clk 0:00:13]}  Ra1 {[%clk 0:00:09]} 70. Nf3 {[%clk 0:00:12]}  Ra2 {[%clk 0:00:09]} 71. Nd4 {[%clk 0:00:12]}  Ra1 {[%clk 0:00:09]} 72. Ne6+ {[%clk 0:00:13]}  Kf7 {[%clk 0:00:09]} 73. Nc5 {[%clk 0:00:13]}  Kg7 {[%clk 0:00:09]} 74. Ne4 {[%clk 0:00:13]}  Ra4 {[%clk 0:00:09]} 75. Nf6 {[%clk 0:00:14]}  Ra3 {[%clk 0:00:09]} 76. Kh4 {[%clk 0:00:14]}  Ra1 {[%clk 0:00:09]} 77. g4 {[%clk 0:00:14]}  Rh1+ {[%clk 0:00:08]} 78. Kg3 {[%clk 0:00:14]}  Rg1+ {[%clk 0:00:09]} 79. Kf3 {[%clk 0:00:14]}  Ra1 {[%clk 0:00:09]} 80. Nd5 {[%clk 0:00:12]}  Ra3+ {[%clk 0:00:10]} 81. Ne3 {[%clk 0:00:12]}  Ra4 {[%clk 0:00:10]} 82. Nd5 {[%clk 0:00:11]}  Ra3+ {[%clk 0:00:11]} 83. Ke4 {[%clk 0:00:11]}  Ra4+ {[%clk 0:00:11]} 84. Ke5 {[%clk 0:00:11]}  Ra5 {[%clk 0:00:11]} 85. f5 {[%clk 0:00:11]}  gxf5 {[%clk 0:00:10]} 86. gxf5 {[%clk 0:00:11]}  Ra1 {[%clk 0:00:11]} 87. Nf6 {[%clk 0:00:10]}  Re1+ {[%clk 0:00:10]} 88. Ne4 {[%clk 0:00:10]}  Rf1 {[%clk 0:00:11]} 89. g6 {[%clk 0:00:10]}  Re1 {[%clk 0:00:10]} 90. Kf4 {[%clk 0:00:10]}  Rf1+ {[%clk 0:00:11]} 91. Kg5 {[%clk 0:00:10]}  Re1 {[%clk 0:00:11]} 92. f6+ {[%clk 0:00:09]}  Kf8 {[%clk 0:00:11]} 93. Nd6 {[%clk 0:00:09]}  Rg1+ {[%clk 0:00:11]} 94. Kf5 {[%clk 0:00:09]}  Rf1+ {[%clk 0:00:11]} 95. Ke5 {[%clk 0:00:09]}  Re1+ {[%clk 0:00:12]} 96. Ne4 {[%clk 0:00:10]}  Kg8 {[%clk 0:00:11]} 97. Kf5 {[%clk 0:00:10]}  Rf1+ {[%clk 0:00:11]} 98. Ke6 {[%clk 0:00:10]}  Re1 {[%clk 0:00:11]} 99. Ke5 {[%clk 0:00:10]}  Kf8 {[%clk 0:00:10]} 100. Kf5 {[%clk 0:00:09]}  Rf1+ {[%clk 0:00:10]} 101. Kg5 {[%clk 0:00:09]}  Rg1+ {[%clk 0:00:11]} 102. Kh6 {[%clk 0:00:09]}  Rh1+ {[%clk 0:00:11]} 103. Kg5 {[%clk 0:00:09]}  Rg1+ {[%clk 0:00:12]} 104. Kf5 {[%clk 0:00:09]}  Rf1+ {[%clk 0:00:12]} 105. Ke5 {[%clk 0:00:09]}  Re1 {[%clk 0:00:13]} 106. g7+ {[%clk 0:00:09]}  Kf7 {[%clk 0:00:12]} 107. Kf5 {[%clk 0:00:09]}  Rf1+ {[%clk 0:00:13]} 108. Ke5 {[%clk 0:00:09]}  Re1 {[%clk 0:00:13]} 109. Kd5 {[%clk 0:00:09]}  Rd1+ {[%clk 0:00:13]} 110. Kc6 {[%clk 0:00:10]}  Re1 {[%clk 0:00:12]} 111. Nd6+ {[%clk 0:00:09]}  Kg8 {[%clk 0:00:12]} 112. Kd7 {[%clk 0:00:09]}  Rd1 {[%clk 0:00:12]} 113. Ke7 {[%clk 0:00:08]}  Re1+ {[%clk 0:00:12]} 114. Kd7 {[%clk 0:00:09]}  Rd1 {[%clk 0:00:12]} 115. Ke6 {[%clk 0:00:09]}  Re1+ {[%clk 0:00:13]} 116. Kf5 {[%clk 0:00:09]}  Rf1+ {[%clk 0:00:13]} 117. Ke5 {[%clk 0:00:10]}  Re1+ {[%clk 0:00:13]} 118. Kd5 {[%clk 0:00:10]}  Rf1 {[%clk 0:00:12]} 119. Ke6 {[%clk 0:00:09]}  Re1+ {[%clk 0:00:13]} 120. Kf5 {[%clk 0:00:10]}  Rf1+ {[%clk 0:00:13]} 121. Ke5 {[%clk 0:00:10]}  Re1+ {[%clk 0:00:13]} 122. Ne4 {[%clk 0:00:11]}  Re2 {[%clk 0:00:13]} 123. Kf5 {[%clk 0:00:11]}  Re3 {[%clk 0:00:13]} 124. Ng5 {[%clk 0:00:11]}  Re1 {[%clk 0:00:12]} 125. Kg6 {[%clk 0:00:10]}  Rf1 {[%clk 0:00:09]} 126. Ne6 {[%clk 0:00:08]}  Rg1+ {[%clk 0:00:08]} 127. Kf5 {[%clk 0:00:07]}  Rf1+ {[%clk 0:00:09]} 128. Nf4 {[%clk 0:00:06]}  Rf2 {[%clk 0:00:08]} 129. Ke5 {[%clk 0:00:06]}  Rf1 {[%clk 0:00:08]} 130. Ne6 {[%clk 0:00:05]}  Re1+ {[%clk 0:00:08]} 131. Kf5 {[%clk 0:00:03]}  Rf1+ {[%clk 0:00:08]} 132. Nf4 {[%clk 0:00:04]}  Rf2 {[%clk 0:00:07]} 133. Kg5 {[%clk 0:00:04]}  Rf1 {[%clk 0:00:08]} 134. Kf5 {[%clk 0:00:05]} 1/2-1/2


[Site "https://www.chess.com"]

[Event "Titled Tuesday Blitz March 08 Late 2022"]
[White "Svane, Rasmus"]
[Black "Arabidze, Meri"]
[WhiteFideId "4657101"]
[BlackFideId "13604040"]
[WhiteElo "2645"]
[BlackElo "2335"]
[Result "1-0"]
[Round "10"]
[TimeControl "180+1"]
[Date "2022.03.08"]
[WhiteClock "0:00:12"]
[BlackClock "0:00:02"]

1. Nf3 {[%clk 0:03:00]}  f5 {[%clk 0:03:00]} 2. d3 {[%clk 0:02:59]}  Nf6 {[%clk 0:03:00]} 3. e4 {[%clk 0:02:59]}  d6 {[%clk 0:02:58]} 4. Nc3 {[%clk 0:02:50]}  e5 {[%clk 0:02:57]} 5. exf5 {[%clk 0:02:51]}  Bxf5 {[%clk 0:02:57]} 6. d4 {[%clk 0:02:51]}  e4 {[%clk 0:02:44]} 7. Nh4 {[%clk 0:02:51]}  Qd7 {[%clk 0:02:30]} 8. f3 {[%clk 0:02:46]}  d5 {[%clk 0:02:22]} 9. g4 {[%clk 0:02:38]}  Be6 {[%clk 0:02:17]} 10. g5 {[%clk 0:02:38]}  Ng8 {[%clk 0:01:59]} 11. fxe4 {[%clk 0:02:38]}  dxe4 {[%clk 0:01:48]} 12. Bg2 {[%clk 0:02:30]}  Bg4 {[%clk 0:01:32]} 13. Qd2 {[%clk 0:02:28]}  Nc6 {[%clk 0:01:32]} 14. d5 {[%clk 0:02:03]}  Ne5 {[%clk 0:01:26]} 15. Bxe4 {[%clk 0:01:14]}  O-O-O {[%clk 0:01:23]} 16. Qd4 {[%clk 0:01:15]}  Nc6 {[%clk 0:00:51]} 17. Qe3 {[%clk 0:01:01]}  Nb4 {[%clk 0:00:28]} 18. Qxa7 {[%clk 0:01:00]}  Qe7 {[%clk 0:00:27]} 19. Be3 {[%clk 0:00:54]}  Kd7 {[%clk 0:00:15]} 20. a3 {[%clk 0:00:39]}  Ra8 {[%clk 0:00:11]} 21. Qxa8 {[%clk 0:00:35]}  Nxc2+ {[%clk 0:00:11]} 22. Kd2 {[%clk 0:00:29]}  Nxe3 {[%clk 0:00:12]} 23. Kxe3 {[%clk 0:00:28]}  Qc5+ {[%clk 0:00:12]} 24. Kd3 {[%clk 0:00:28]}  Bd6 {[%clk 0:00:06]} 25. Rhf1 {[%clk 0:00:23]}  h6 {[%clk 0:00:02]} 26. Ng6 {[%clk 0:00:22]}  hxg5 {[%clk 0:00:02]} 27. Nxh8 {[%clk 0:00:19]}  Bf4 {[%clk 0:00:02]} 28. Rae1 {[%clk 0:00:14]}  Nf6 {[%clk 0:00:03]} 29. Nf7 {[%clk 0:00:12]}  Nxe4 {[%clk 0:00:02]} 30. Qd8# {[%clk 0:00:12]} 1-0


[Site "https://www.chess.com"]